bitfinex/quotes_BTCUSD_20230905
["timestamp","ask_amount","ask_price","bid_price","bid_amount"]
[1693926017058,0.0197,25733.0,25732.0,2.435026]
[1693926017457,0.10850266,25733.0,25732.0,2.435026]
[1693926017763,0.0197,25733.0,25732.0,2.435026]
[1693926018127,0.10849521,25733.0,25732.0,2.435026]
[1693926018483,0.10849521,25733.0,25732.0,2.24067708]
[1693926018691,0.10849521,25733.0,25732.0,2.34397708]
[1693926018692,0.0197,25733.0,25732.0,2.34397708]
[1693926019445,0.0197,25733.0,25732.0,2.34597708]
[1693926019751,0.0197,25733.0,25732.0,2.437026]
[1693926019925,0.25823961,25733.0,25732.0,0.1033]
[1693926020131,1.91620307,25733.0,25730.0,0.777282]
[1693926020345,1.91620307,25733.0,25732.0,0.002]
[1693926020747,1.91620307,25733.0,25730.0,1.554584]
[1693926020748,2.78327295,25733.0,25730.0,0.776282]
[1693926020971,2.69341507,25733.0,25730.0,0.776282]
[1693926021349,2.69341507,25733.0,25729.0,1.46557208]
[1693926021653,2.69341507,25733.0,25730.0,0.779298]
[1693926021654,1.0033074,25732.0,25730.0,0.779298]
[1693926022210,1.7805524,25732.0,25729.0,1.657935]
[1693926022452,2.5577974,25732.0,25730.0,0.002]
[1693926022961,2.5577974,25732.0,25729.0,0.777324]
[1693926023319,2.5597974,25732.0,25729.0,0.58495242]
[1693926023729,2.5597974,25732.0,25729.0,0.58695242]
[1693926023925,2.5597974,25732.0,25729.0,0.58495242]
[1693926024128,0.21683188,25731.0,25729.0,0.58495242]
[1693926024330,0.99410588,25731.0,25729.0,0.58695242]
[1693926024674,1.77137988,25731.0,25728.0,0.880645]
[1693926024881,1.77137988,25731.0,25729.0,0.002]
[1693926025466,1.77137988,25731.0,25728.0,1.657988]
[1693926025647,1.77537988,25731.0,25729.0,0.001]
[1693926025848,1.77537988,25731.0,25729.0,0.778328]
[1693926025849,0.13991244,25730.0,25729.0,0.778328]
[1693926026053,0.09327496,25730.0,25729.0,0.777328]
[1693926026476,0.09327496,25730.0,25729.0,0.778328]
[1693926026855,0.09327496,25730.0,25729.0,0.777328]
[1693926027211,0.09327496,25730.0,25728.0,0.1033]
[1693926027212,2.01417751,25730.0,25728.0,0.1033]
[1693926027421,1.92090255,25730.0,25728.0,0.1033]
[1693926027849,1.92090255,25730.0,25727.0,1.554761]
[1693926027850,0.09327549,25729.0,25727.0,1.554761]
[1693926028056,0.09327549,25729.0,25728.0,0.777356]
[1693926028591,0.09327549,25729.0,25728.0,0.778356]
[1693926028805,0.43772313,25729.0,25728.0,0.001]
[1693926029072,1.12177964,25729.0,25726.0,1.658117]
[1693926029396,1.38858531,25729.0,25728.0,0.001]
[1693926029508,1.12177964,25729.0,25728.0,0.001]
[1693926029712,1.89911164,25729.0,25728.0,0.001]
[1693926030496,1.89411164,25729.0,25728.0,0.001]
[1693926030651,1.554664,25729.0,25726.0,0.38953113]
[1693926030851,0.29829353,25728.0,25726.0,0.794406]
[1693926031051,1.07566953,25728.0,25726.0,0.018]
[1693926031688,1.07566953,25728.0,25725.0,1.813753]
[1693926032043,0.22522726,25727.0,25725.0,0.04781515]
[1693926032239,2.332179,25727.0,25723.0,1.55502]
[1693926032446,2.46683711,25727.0,25723.0,0.77751]
[1693926032881,2.99339482,25727.0,25722.0,1.855058]
[1693926033092,2.99339482,25727.0,25726.0,0.008]
[1693926033093,3.38004009,25727.0,25726.0,0.008]
[1693926033298,2.85873671,25727.0,25722.0,1.855058]
[1693926033520,3.26567538,25727.0,25722.0,1.85507]
[1693926033697,3.21905145,25727.0,25722.0,1.85507]
[1693926033935,3.12576294,25727.0,25722.0,1.85507]
[1693926034323,3.13276294,25727.0,25726.0,0.002]
[1693926034473,2.72582427,25727.0,25726.0,0.002]
[1693926034680,3.20876954,25727.0,25721.0,0.155577]
[1693926034885,0.777514,25723.0,25721.0,0.155577]
[1693926035093,0.91217211,25723.0,25722.0,0.001]
[1693926035310,0.777514,25723.0,25720.0,0.777586]
[1693926035506,0.10828561,25722.0,25720.0,1.555183]
[1693926035714,0.777514,25723.0,25720.0,0.777586]
[1693926035918,1.555028,25723.0,25721.0,0.001]
[1693926036143,2.332542,25723.0,25721.0,0.001]
[1693926037182,0.21599542,25722.0,25721.0,0.001]
[1693926037385,1.77108342,25722.0,25721.0,0.001]
[1693926037586,1.77108342,25722.0,25718.0,1.658603]
[1693926037788,2.13874153,25722.0,25719.0,0.777634]
[1693926038115,2.00408342,25722.0,25719.0,0.777634]
[1693926038411,2.01508342,25722.0,25721.0,0.001]
[1693926038639,2.679932,25722.0,25721.0,0.001]
[1693926038855,2.93250471,25722.0,25718.0,0.68020716]
[1693926039066,2.93250471,25722.0,25718.0,1.61251627]
[1693926039067,2.05166071,25722.0,25718.0,1.61251627]
[1693926039263,2.05166071,25722.0,25719.0,0.1033]
[1693926039440,2.05166071,25722.0,25719.0,1.65855]
[1693926039672,2.43830598,25722.0,25719.0,1.66555]
[1693926039891,0.23314503,25721.0,25719.0,0.784617]
[1693926040148,1.01072103,25721.0,25719.0,0.784617]
[1693926040628,1.01072103,25721.0,25719.0,0.796617]
[1693926040826,1.01072103,25721.0,25719.0,0.777617]
[1693926041205,1.01172103,25721.0,25719.0,0.796617]
[1693926042857,1.01172103,25721.0,25719.0,0.019]
[1693926043216,1.01172103,25721.0,25719.0,0.796634]
[1693926043409,1.10382617,25721.0,25719.0,0.796634]
[1693926044915,0.24585199,25720.0,25719.0,0.796634]
[1693926045821,0.24585199,25720.0,25719.0,0.019]
[1693926046450,1.80105999,25720.0,25719.0,0.007]
[1693926046662,1.80205999,25720.0,25719.0,0.02]
[1693926047079,1.80205999,25720.0,25719.0,0.013]
[1693926047289,1.80205999,25720.0,25719.0,0.02]
[1693926047467,2.09265359,25720.0,25719.0,0.007]
[1693926047818,2.09265359,25720.0,25717.0,2.333042]
[1693926047819,1.32004959,25720.0,25717.0,2.333042]
[1693926048024,1.33104959,25720.0,25719.0,0.001]
[1693926048221,1.03945599,25720.0,25719.0,0.001]
[1693926048641,1.02845599,25720.0,25718.0,0.777662]
[1693926049469,1.02345599,25720.0,25718.0,0.777662]
[1693926049872,1.02445599,25720.0,25718.0,0.777662]
[1693926050075,1.02345599,25720.0,25718.0,0.777662]
[1693926050276,0.24585199,25720.0,25718.0,0.777662]
[1693926050479,0.21191221,25719.0,25718.0,0.777662]
[1693926050764,0.21191221,25719.0,25718.0,0.781662]
[1693926051449,0.21191221,25719.0,25718.0,0.777662]
[1693926052091,0.21391221,25719.0,25718.0,0.777662]
[1693926052818,0.21391221,25719.0,25718.0,0.781662]
[1693926053015,0.49669686,25719.0,25718.0,0.781662]
[1693926054954,0.49669686,25719.0,25718.0,0.004]
[1693926055176,0.21391221,25719.0,25718.0,0.781662]
[1693926057410,0.002,25719.0,25718.0,0.781662]
[1693926057618,0.002,25719.0,25718.0,2.440292]
[1693926058452,0.002,25719.0,25718.0,2.82693727]
[1693926058671,0.002,25719.0,25718.0,3.22815727]
[1693926058873,0.002,25719.0,25718.0,3.61882254]
[1693926059079,0.002,25719.0,25718.0,3.62122254]
[1693926059285,0.002,25719.0,25718.0,3.61036254]
[1693926059504,0.002,25719.0,25718.0,3.60730254]
[1693926059723,0.002,25719.0,25718.0,3.60766254]
[1693926059927,0.002,25719.0,25718.0,3.60706254]
[1693926060130,0.002,25719.0,25718.0,3.60778254]
[1693926060305,0.002,25719.0,25718.0,3.60766254]
[1693926060553,0.002,25719.0,25718.0,3.61804254]
[1693926060779,0.002,25719.0,25718.0,4.06632254]
[1693926060987,0.9892,25726.0,25719.0,0.4889]
[1693926061138,0.9892,25726.0,25725.0,0.1033]
[1693926061338,0.25019849,25729.0,25725.0,1.81286411]
[1693926061545,0.25019849,25729.0,25726.0,0.25795811]
[1693926061747,0.21641257,25728.0,25727.0,0.777393]
[1693926061946,0.21641257,25728.0,25727.0,1.554786]
[1693926062128,0.777339,25729.0,25727.0,1.554786]
[1693926062327,0.777339,25729.0,25727.0,0.777393]
[1693926062750,0.21711569,25728.0,25727.0,0.777393]
[1693926063943,0.21711569,25728.0,25727.0,0.779393]
[1693926064245,0.21711569,25728.0,25727.0,0.777393]
[1693926064445,0.21711569,25728.0,25727.0,0.779393]
[1693926064625,0.21711569,25728.0,25727.0,0.002]
[1693926065148,1.81484169,25728.0,25727.0,0.002]
[1693926066015,2.16779146,25728.0,25727.0,0.002]
[1693926066565,0.25802338,25727.0,25725.0,0.64937294]
[1693926066787,0.25802338,25727.0,25725.0,0.75267294]
[1693926066988,0.043,25728.0,25725.0,1.53012594]
[1693926067193,0.043,25728.0,25727.0,0.1033]
[1693926067398,0.043,25728.0,25727.0,2.435479]
[1693926067795,0.2711018,25729.0,25727.0,2.435479]
[1693926067796,0.2711018,25729.0,25727.0,2.332179]
[1693926067999,0.2711018,25729.0,25728.0,0.1033]
[1693926068788,0.2931018,25729.0,25728.0,0.1033]
[1693926069554,0.2711018,25729.0,25728.0,0.1033]
[1693926069783,0.2931018,25729.0,25728.0,0.1053]
[1693926070617,0.3171018,25729.0,25728.0,0.1073]
[1693926071516,0.3171018,25729.0,25728.0,0.884663]
[1693926072139,0.3171018,25729.0,25728.0,0.777363]
[1693926073129,0.046,25729.0,25728.0,0.777363]
[1693926073334,0.28183217,25728.0,25727.0,1.554768]
[1693926074603,0.32983217,25728.0,25727.0,1.558768]
[1693926077530,0.32983217,25728.0,25727.0,1.55875]
[1693926078695,0.048,25728.0,25727.0,1.55875]
[1693926078896,0.048,25728.0,25727.0,1.48206886]
[1693926079042,0.048,25728.0,25727.0,1.55875]
[1693926080528,0.048,25728.0,25727.0,2.336143]
[1693926081183,0.048,25728.0,25727.0,2.332161]
[1693926081505,0.048,25728.0,25727.0,2.6534481]
[1693926081723,0.048,25728.0,25727.0,2.332161]
[1693926082477,0.048,25728.0,25727.0,2.332179]
[1693926084019,0.26329038,25728.0,25727.0,2.332179]
[1693926086556,0.048,25728.0,25727.0,2.332179]
[1693926086757,0.048,25728.0,25727.0,2.435479]
[1693926086970,0.048,25728.0,25727.0,3.23083317]
[1693926087170,0.048,25728.0,25727.0,3.56145317]
[1693926087496,0.048,25728.0,25727.0,3.59015317]
[1693926087695,0.048,25728.0,25727.0,3.58697317]
[1693926087901,0.048,25728.0,25727.0,3.58631317]
[1693926088095,0.048,25728.0,25727.0,3.57479317]
[1693926088325,0.048,25728.0,25727.0,3.55637317]
[1693926088524,0.048,25728.0,25727.0,3.49019317]
[1693926088720,0.048,25728.0,25727.0,3.14212427]
[1693926088921,0.048,25728.0,25727.0,3.12212427]
[1693926098521,0.048,25728.0,25727.0,3.18854427]
[1693926098743,0.048,25728.0,25727.0,3.22996427]
[1693926098951,0.048,25728.0,25727.0,3.23032427]
[1693926099296,0.048,25728.0,25727.0,3.61660954]
[1693926099433,0.048,25728.0,25727.0,3.61582954]
[1693926099773,0.048,25728.0,25727.0,3.64429598]
[1693926099974,0.048,25728.0,25727.0,3.64423598]
[1693926100176,0.048,25728.0,25727.0,3.64123598]
[1693926100478,0.048,25728.0,25727.0,3.64099598]
[1693926100682,0.048,25728.0,25727.0,3.64153598]
[1693926100912,0.048,25728.0,25727.0,3.64123598]
[1693926101112,0.048,25728.0,25727.0,3.64219598]
[1693926101287,0.048,25728.0,25727.0,3.64237598]
[1693926101501,0.048,25728.0,25727.0,3.64159598]
[1693926101813,0.048,25728.0,25727.0,3.64099598]
[1693926102011,0.048,25728.0,25727.0,3.64207598]
[1693926102166,0.048,25728.0,25727.0,3.64087598]
[1693926102363,0.048,25728.0,25727.0,3.64027598]
[1693926102565,0.048,25728.0,25727.0,3.63997598]
[1693926102772,0.048,25728.0,25727.0,3.62737598]
[1693926103334,0.048,25728.0,25727.0,3.62575598]
[1693926103475,0.048,25728.0,25727.0,3.62509598]
[1693926103866,0.048,25728.0,25727.0,3.64273598]
[1693926104103,0.048,25728.0,25727.0,3.64249598]
[1693926104299,0.048,25728.0,25727.0,3.64291598]
[1693926104502,0.048,25728.0,25727.0,3.64519598]
[1693926104632,0.048,25728.0,25727.0,3.64507598]
[1693926104831,0.048,25728.0,25727.0,3.64513598]
[1693926105042,0.048,25728.0,25727.0,3.64507598]
[1693926105360,0.048,25728.0,25727.0,3.64429598]
[1693926105541,0.048,25728.0,25727.0,3.64453598]
[1693926105887,0.048,25728.0,25727.0,3.64369598]
[1693926106092,0.048,25728.0,25727.0,3.64351598]
[1693926106450,0.048,25728.0,25727.0,3.64315598]
[1693926106756,0.048,25728.0,25727.0,3.65451865]
[1693926106937,0.048,25728.0,25727.0,3.65445865]
[1693926107142,0.048,25728.0,25727.0,3.65403865]
[1693926107337,0.048,25728.0,25727.0,3.65391865]
[1693926107469,0.048,25728.0,25727.0,3.65373865]
[1693926107685,0.048,25728.0,25727.0,3.65325865]
[1693926107893,0.048,25728.0,25727.0,3.65313865]
[1693926108104,0.048,25728.0,25727.0,3.65433865]
[1693926108313,0.048,25728.0,25727.0,3.65421865]
[1693926108524,0.048,25728.0,25727.0,4.06317865]
[1693926108814,0.048,25728.0,25727.0,4.06305865]
[1693926108967,0.048,25728.0,25727.0,4.06017865]
[1693926109180,0.048,25728.0,25727.0,4.05987865]
[1693926109381,0.048,25728.0,25727.0,4.05813865]
[1693926109551,0.048,25728.0,25727.0,4.05783865]
[1693926109750,0.048,25728.0,25727.0,4.05801865]
[1693926109967,0.048,25728.0,25727.0,4.06221865]
[1693926110165,0.048,25728.0,25727.0,4.06113865]
[1693926110362,0.048,25728.0,25727.0,4.05813865]
[1693926110567,0.048,25728.0,25727.0,4.05729865]
[1693926110766,0.048,25728.0,25727.0,4.06131865]
[1693926111016,0.048,25728.0,25727.0,4.06257865]
[1693926111218,0.048,25728.0,25727.0,4.06143865]
[1693926111410,0.048,25728.0,25727.0,4.06431865]
[1693926111698,0.048,25728.0,25727.0,4.12785865]
[1693926111869,0.048,25728.0,25727.0,4.25943865]
[1693926112077,0.048,25728.0,25727.0,4.25229865]
[1693926112289,0.048,25728.0,25727.0,4.25175865]
[1693926112482,0.048,25728.0,25727.0,4.25169865]
[1693926112684,0.048,25728.0,25727.0,4.25061865]
[1693926112999,0.048,25728.0,25727.0,4.25025865]
[1693926113177,0.048,25728.0,25727.0,4.24755865]
[1693926113701,0.048,25728.0,25727.0,4.24575865]
[1693926113854,0.048,25728.0,25727.0,4.24749865]
[1693926114059,0.048,25728.0,25727.0,4.25049865]
[1693926114260,0.048,25728.0,25727.0,4.24575865]
[1693926114467,0.048,25728.0,25727.0,4.24473865]
[1693926114643,0.048,25728.0,25727.0,4.24587865]
[1693926114841,0.048,25728.0,25727.0,4.24593865]
[1693926115045,0.048,25728.0,25727.0,4.24581865]
[1693926115305,0.048,25728.0,25727.0,4.24527865]
[1693926115507,0.048,25728.0,25727.0,4.23669865]
[1693926115744,0.048,25728.0,25727.0,3.73915598]
[1693926117705,0.048,25728.0,25727.0,4.8597498]
[1693926118494,0.048,25728.0,25727.0,4.45310453]
[1693926119584,0.048,25728.0,25727.0,4.33310453]
[1693926119767,0.048,25728.0,25727.0,4.45310453]
[1693926120261,0.048,25728.0,25727.0,4.37310453]
[1693926120557,0.048,25728.0,25727.0,3.25251071]
[1693926120897,0.048,25728.0,25727.0,4.37313126]
[1693926121636,0.31358517,25728.0,25726.0,2.332219]
[1693926122399,0.31358517,25728.0,25726.0,1.554809]
[1693926122593,0.28958517,25728.0,25726.0,1.554809]
[1693926122816,0.26558517,25728.0,25726.0,1.554809]
[1693926122936,0.21151222,25727.0,25726.0,1.554809]
[1693926123131,0.21151222,25727.0,25726.0,1.556809]
[1693926124075,0.21151222,25727.0,25726.0,1.557809]
[1693926124279,0.21151222,25727.0,25726.0,1.556809]
[1693926124690,0.21751222,25727.0,25726.0,1.557809]
[1693926125065,0.21751222,25727.0,25726.0,2.333232]
[1693926125270,0.006,25727.0,25726.0,2.82317727]
[1693926125499,0.017,25727.0,25726.0,2.82417727]
[1693926127135,0.017,25727.0,25726.0,2.90343727]
[1693926127334,0.017,25727.0,25726.0,2.89497727]
[1693926127565,0.017,25727.0,25726.0,5.60581916]
[1693926127763,0.017,25727.0,25726.0,6.00506215]
[1693926127982,0.017,25727.0,25726.0,6.00470215]
[1693926128184,0.017,25727.0,25726.0,6.00020215]
[1693926128385,0.017,25727.0,25726.0,6.00440215]
[1693926128588,0.017,25727.0,25726.0,5.99816215]
[1693926128945,0.017,25727.0,25726.0,5.97602215]
[1693926129141,0.017,25727.0,25726.0,5.89778215]
[1693926129879,0.017,25727.0,25726.0,5.48888215]
[1693926130086,0.017,25727.0,25726.0,4.36824554]
[1693926131365,0.017,25727.0,25726.0,4.34824554]
[1693926134315,0.017,25727.0,25726.0,5.5848288]
[1693926134516,0.017,25727.0,25726.0,5.5881888]
[1693926134724,0.017,25727.0,25726.0,5.5877688]
[1693926134977,0.017,25727.0,25726.0,5.5873488]
[1693926135143,0.017,25727.0,25726.0,5.5880088]
[1693926135479,0.017,25727.0,25726.0,5.5875888]
[1693926135685,0.017,25727.0,25726.0,5.6173088]
[1693926135917,0.017,25727.0,25726.0,5.6139488]
[1693926136035,0.017,25727.0,25726.0,5.6141888]
[1693926136238,0.017,25727.0,25726.0,5.6145488]
[1693926136463,0.017,25727.0,25726.0,5.6102288]
[1693926136667,0.017,25727.0,25726.0,5.6071688]
[1693926136880,0.017,25727.0,25726.0,5.6080688]
[1693926137078,0.017,25727.0,25726.0,5.6077688]
[1693926137478,0.017,25727.0,25726.0,5.6080088]
[1693926137648,0.017,25727.0,25726.0,5.6075288]
[1693926137888,0.017,25727.0,25726.0,5.6066288]
[1693926138061,0.017,25727.0,25726.0,5.6064488]
[1693926138191,0.017,25727.0,25726.0,5.6063888]
[1693926138418,0.017,25727.0,25726.0,5.6068088]
[1693926138614,0.017,25727.0,25726.0,5.6059688]
[1693926138822,0.017,25727.0,25726.0,5.6042888]
[1693926139232,0.017,25727.0,25726.0,5.6040488]
[1693926139437,0.017,25727.0,25726.0,5.6002088]
[1693926139644,0.017,25727.0,25726.0,5.5846688]
[1693926139842,0.017,25727.0,25726.0,5.5088888]
[1693926142175,0.017,25727.0,25726.0,4.36824554]
[1693926142800,0.017,25727.0,25726.0,6.0016437]
[1693926143182,0.017,25727.0,25726.0,5.9963037]
[1693926143351,0.017,25727.0,25726.0,5.9982237]
[1693926143593,0.017,25727.0,25726.0,6.0020637]
[1693926143729,0.017,25727.0,25726.0,6.0022437]
[1693926143930,0.017,25727.0,25726.0,6.0018837]
[1693926144175,0.017,25727.0,25726.0,6.0022437]
[1693926144488,0.017,25727.0,25726.0,5.9916837]
[1693926144793,0.017,25727.0,25726.0,5.9860437]
[1693926145005,0.017,25727.0,25726.0,5.9891037]
[1693926145407,0.017,25727.0,25726.0,5.9886237]
[1693926145616,0.017,25727.0,25726.0,5.9936637]
[1693926145821,0.017,25727.0,25726.0,5.9967237]
[1693926146128,0.017,25727.0,25726.0,5.9973837]
[1693926146375,0.017,25727.0,25726.0,6.0023637]
[1693926146570,0.017,25727.0,25726.0,6.0027837]
[1693926146752,0.017,25727.0,25726.0,6.0028437]
[1693926146950,0.017,25727.0,25726.0,6.0022437]
[1693926147268,0.017,25727.0,25726.0,6.0038637]
[1693926147469,0.017,25727.0,25726.0,6.0035637]
[1693926147713,0.017,25727.0,25726.0,6.0045237]
[1693926147885,0.017,25727.0,25726.0,6.0264837]
[1693926148063,0.017,25727.0,25726.0,6.0298437]
[1693926148266,0.017,25727.0,25726.0,6.0300237]
[1693926148459,0.017,25727.0,25726.0,6.0093037]
[1693926148662,0.017,25727.0,25726.0,6.0087037]
[1693926148988,0.017,25727.0,25726.0,6.0039637]
[1693926149284,0.017,25727.0,25726.0,6.0037837]
[1693926149426,0.017,25727.0,25726.0,6.0037237]
[1693926149627,0.017,25727.0,25726.0,5.9896837]
[1693926149826,0.017,25727.0,25726.0,5.9896237]
[1693926150151,0.017,25727.0,25726.0,5.9896837]
[1693926150388,0.017,25727.0,25726.0,5.9881237]
[1693926150702,0.017,25727.0,25726.0,5.9874637]
[1693926150859,0.017,25727.0,25726.0,5.9870437]
[1693926151203,0.017,25727.0,25726.0,5.9865637]
[1693926151401,0.017,25727.0,25726.0,5.9865037]
[1693926151722,0.017,25727.0,25726.0,5.9863837]
[1693926151909,0.017,25727.0,25726.0,5.9869237]
[1693926152116,0.017,25727.0,25726.0,5.9892637]
[1693926152315,0.017,25727.0,25726.0,5.9955037]
[1693926152494,0.017,25727.0,25726.0,6.0015037]
[1693926152690,0.017,25727.0,25726.0,6.0000637]
[1693926153017,0.017,25727.0,25726.0,6.0058837]
[1693926153147,0.017,25727.0,25726.0,6.0057637]
[1693926153347,0.017,25727.0,25726.0,6.0017437]
[1693926153546,0.017,25727.0,25726.0,5.9986837]
[1693926153746,0.017,25727.0,25726.0,5.9992837]
[1693926154007,0.017,25727.0,25726.0,5.9993437]
[1693926154215,0.017,25727.0,25726.0,5.9970037]
[1693926154425,0.017,25727.0,25726.0,5.9964037]
[1693926154625,0.017,25727.0,25726.0,5.9963437]
[1693926154775,0.017,25727.0,25726.0,5.9866837]
[1693926154973,0.017,25727.0,25726.0,5.9844637]
[1693926155178,0.017,25727.0,25726.0,5.9785237]
[1693926155385,0.017,25727.0,25726.0,5.9787037]
[1693926155571,0.017,25727.0,25726.0,5.9823637]
[1693926155778,0.017,25727.0,25726.0,5.9824237]
[1693926155974,0.017,25727.0,25726.0,5.9814037]
[1693926156179,0.017,25727.0,25726.0,5.9791837]
[1693926156606,0.017,25727.0,25726.0,5.9788237]
[1693926156856,0.017,25727.0,25726.0,5.9784637]
[1693926157058,0.017,25727.0,25726.0,5.9639437]
[1693926157260,0.017,25727.0,25726.0,5.8978237]
[1693926158497,0.017,25727.0,25726.0,5.89784669]
[1693926158720,0.017,25727.0,25726.0,3.96160027]
[1693926159302,0.017,25727.0,25726.0,5.08229779]
[1693926165095,0.017,25727.0,25726.0,5.19295779]
[1693926165408,0.017,25727.0,25726.0,5.61877779]
[1693926165618,0.017,25727.0,25726.0,5.61817779]
[1693926165828,0.017,25727.0,25726.0,6.00782306]
[1693926166017,0.017,25727.0,25726.0,6.01040306]
[1693926166221,0.017,25727.0,25726.0,6.00284306]
[1693926166436,0.017,25727.0,25726.0,6.01010306]
[1693926166641,0.017,25727.0,25726.0,6.01004306]
[1693926166839,0.017,25727.0,25726.0,6.00284306]
[1693926167051,0.017,25727.0,25726.0,6.00110306]
[1693926167245,0.017,25727.0,25726.0,5.99450306]
[1693926167423,0.017,25727.0,25726.0,5.99120306]
[1693926167662,0.017,25727.0,25726.0,5.99090306]
[1693926167838,0.017,25727.0,25726.0,6.00278306]
[1693926168010,0.017,25727.0,25726.0,6.00962306]
[1693926168364,0.017,25727.0,25726.0,6.00908306]
[1693926168558,0.017,25727.0,25726.0,6.01196306]
[1693926168730,0.017,25727.0,25726.0,6.01352306]
[1693926168947,0.017,25727.0,25726.0,6.01316306]
[1693926169150,0.017,25727.0,25726.0,6.01304306]
[1693926169373,0.017,25727.0,25726.0,6.01790306]
[1693926169574,0.09330819,25730.0,25727.0,0.4689]
[1693926169786,0.09330819,25730.0,25729.0,0.1033]
[1693926170133,0.09330819,25730.0,25729.0,2.46042927]
[1693926170299,0.09330819,25730.0,25729.0,3.23500127]
[1693926170508,0.09330819,25730.0,25729.0,3.23734127]
[1693926170803,0.10930819,25730.0,25729.0,3.23716127]
[1693926171009,0.13430819,25730.0,25729.0,3.62362654]
[1693926171257,0.23327048,25732.0,25730.0,0.4689]
[1693926171496,0.23327048,25732.0,25731.0,4.32793327]
[1693926171710,0.08201368,25735.0,25733.0,0.06]
[1693926171911,0.08201368,25735.0,25734.0,4.45585027]
[1693926172093,0.9892,25737.0,25734.0,5.8275714]
[1693926172321,0.9892,25737.0,25736.0,0.1033]
[1693926172550,0.48377454,25740.0,25736.0,4.288905]
[1693926172757,0.48377454,25740.0,25739.0,0.1033]
[1693926172907,0.48377454,25740.0,25739.0,3.21142]
[1693926173089,0.33574729,25740.0,25739.0,3.532562]
[1693926173492,0.08667275,25740.0,25739.0,3.31034439]
[1693926173690,0.08,25741.0,25739.0,3.31034439]
[1693926173898,0.004,25740.0,25739.0,3.41564439]
[1693926174095,0.08,25741.0,25739.0,3.41364439]
[1693926174326,0.08,25741.0,25739.0,3.41564439]
[1693926174535,0.004,25740.0,25739.0,3.41764439]
[1693926174909,0.004,25740.0,25739.0,3.09650239]
[1693926175763,0.004,25740.0,25739.0,3.09450239]
[1693926176338,0.43271529,25740.0,25739.0,3.09450239]
[1693926176542,0.42871529,25740.0,25739.0,3.09250239]
[1693926176972,0.28899048,25740.0,25739.0,3.09650239]
[1693926177375,0.28899048,25740.0,25739.0,3.09450239]
[1693926177542,0.28899048,25740.0,25739.0,3.09250239]
[1693926177891,0.28899048,25740.0,25739.0,3.09650239]
[1693926177892,0.29299048,25740.0,25739.0,3.09650239]
[1693926178093,0.29299048,25740.0,25739.0,2.99320239]
[1693926178904,0.004,25740.0,25739.0,2.99320239]
[1693926181103,0.004,25740.0,25739.0,3.30285263]
[1693926181307,0.22099365,25740.0,25739.0,2.99320239]
[1693926181512,0.22099365,25740.0,25739.0,2.21617239]
[1693926183290,0.004,25740.0,25739.0,2.21617239]
[1693926185001,0.23674909,25740.0,25739.0,2.21617239]
[1693926185206,0.23674909,25740.0,25739.0,1.43914239]
[1693926186169,0.004,25740.0,25739.0,1.43914239]
[1693926186372,0.004,25740.0,25739.0,1.54244239]
[1693926186575,0.004,25740.0,25739.0,2.31947239]
[1693926188038,0.004,25740.0,25739.0,2.70611766]
[1693926188821,0.004,25740.0,25739.0,2.31947239]
[1693926189503,0.23419595,25741.0,25739.0,2.31947239]
[1693926189680,0.23419595,25741.0,25739.0,2.21617239]
[1693926190526,0.23419595,25741.0,25739.0,2.21417239]
[1693926190690,0.23419595,25741.0,25739.0,2.21617239]
[1693926190931,0.23419595,25741.0,25739.0,2.21417239]
[1693926191307,0.23419595,25741.0,25739.0,1.43914239]
[1693926191509,0.23419595,25741.0,25739.0,2.21617239]
[1693926191770,0.23419595,25741.0,25739.0,0.66211239]
[1693926192132,0.23419595,25741.0,25739.0,1.43914239]
[1693926194123,0.47976868,25741.0,25739.0,0.66211239]
[1693926194670,0.47976868,25741.0,25739.0,0.781025]
[1693926196280,0.23500134,25740.0,25739.0,0.781025]
[1693926196686,0.23500134,25740.0,25739.0,0.004]
[1693926196687,0.424974,25740.0,25739.0,0.004]
[1693926196841,1.7373,25740.0,25739.0,0.004]
[1693926197017,2.12394527,25740.0,25739.0,0.002]
[1693926197227,2.80832824,25740.0,25739.0,0.002]
[1693926197398,2.80832824,25740.0,25739.0,0.004]
[1693926197802,2.42168297,25740.0,25739.0,0.002]
[1693926198002,2.12394527,25740.0,25739.0,0.002]
[1693926199395,2.12394527,25740.0,25739.0,0.004]
[1693926199613,2.98094527,25740.0,25739.0,0.004]
[1693926200239,0.08,25736.0,25734.0,1.46095034]
[1693926200449,0.31795811,25736.0,25734.0,1.46095034]
[1693926200694,0.1833,25736.0,25734.0,1.46095034]
[1693926200897,0.22216371,25735.0,25734.0,1.46095034]
[1693926201326,0.32546371,25735.0,25733.0,0.777201]
[1693926201530,0.1033,25734.0,25733.0,0.777201]
[1693926202069,0.1033,25734.0,25732.0,2.331696]
[1693926202276,0.1033,25734.0,25732.0,0.777227]
[1693926202678,0.1233,25734.0,25731.0,0.932763]
[1693926202855,0.34319244,25734.0,25731.0,1.710016]
[1693926203060,0.34319244,25734.0,25731.0,1.554502]
[1693926203523,0.36819244,25734.0,25731.0,1.45910515]
[1693926204058,0.1033,25732.0,25730.0,0.777275]
[1693926204261,0.1033,25732.0,25731.0,0.002]
[1693926204941,0.1033,25732.0,25731.0,0.003]
[1693926205743,0.1033,25732.0,25731.0,0.001]
[1693926205943,0.1253,25732.0,25731.0,0.003]
[1693926206257,0.35594008,25732.0,25731.0,0.002]
[1693926206432,0.37194008,25732.0,25731.0,0.003]
[1693926207089,1.54256372,25732.0,25731.0,0.003]
[1693926207387,2.70597887,25732.0,25731.0,0.003]
[1693926207590,2.48480212,25732.0,25731.0,0.003]
[1693926208064,2.7843493,25732.0,25731.0,0.003]
[1693926208284,3.26204412,25732.0,25731.0,0.003]